bitfinex/quotes_ETHUSD_20250827
["timestamp","ask_amount","ask_price","bid_price","bid_amount"]
[1756291377303,0.745,4586.9,4586.8,2.20016918]
[1756291377911,0.4321,4587.6,4587.5,2.17983651]
[1756291378109,0.4321,4587.6,4586.8,0.2501]
[1756291378110,45.92897292,4588.0,4587.8,2.17969359]
[1756291378316,0.745,4587.9,4587.8,2.17969359]
[1756291378933,0.745,4587.9,4587.6,0.1088]
[1756291379247,0.7442,4587.9,4587.4,0.1088]
[1756291380493,0.4321,4587.8,4587.4,0.1088]
[1756291380695,0.4321,4587.8,4587.7,2.17974148]
[1756291381042,45.49687292,4588.0,4587.9,2.83964646]
[1756291381211,45.49687292,4588.0,4587.9,2.71560465]
[1756291382226,45.49687292,4588.0,4587.9,2.94700465]
[1756291382989,45.49687292,4588.0,4587.9,3.75160465]
[1756291383420,45.49687292,4588.0,4587.9,3.60700465]
[1756291386417,45.49887292,4588.0,4587.9,2.71560465]
[1756291386725,45.49887292,4588.0,4587.9,2.17964646]
[1756291387128,45.49887292,4588.0,4587.9,2.41104646]
[1756291388328,45.49887292,4588.0,4587.9,2.17964646]
[1756291388495,46.24387292,4588.0,4587.8,0.02]
[1756291388827,0.4321,4587.9,4587.8,0.02]
[1756291389003,2.61174646,4587.9,4587.8,0.02]
[1756291389196,0.745,4587.9,4587.8,0.02]
[1756291392243,0.745,4587.9,4587.6,0.1088]
[1756291392441,0.4321,4587.8,4587.6,0.1088]
[1756291392636,7.43021,4587.8,4587.6,0.1088]
[1756291392843,0.745,4587.7,4587.6,0.1088]
[1756291395630,0.745,4587.7,4587.6,2.28858899]
[1756291396237,6.99811,4587.8,4587.6,0.1088]
[1756291396436,6.99811,4587.8,4587.7,2.17974148]
[1756291396622,6.99811,4587.8,4587.7,2.41114148]
[1756291396822,6.99811,4587.8,4587.7,2.88111858]
[1756291397229,45.49887292,4588.0,4587.9,2.17964646]
[1756291397434,46.24387292,4588.0,4587.9,0.1088]
[1756291398463,46.24387292,4588.0,4587.4,2.17988094]
[1756291398628,0.4321,4587.9,4587.6,0.1088]
[1756291398827,0.3129,4587.7,4587.6,0.1088]
[1756291399559,0.745,4587.7,4587.6,0.1088]
[1756291400357,45.49887292,4588.0,4587.6,2.28858328]
[1756291400735,0.4645,4587.9,4587.6,0.1088]
[1756291401034,0.2927,4587.7,4587.6,0.1088]
[1756291401556,0.7572,4587.7,4587.6,0.1088]
[1756291402331,0.7572,4587.7,4587.6,2.28858899]
[1756291402525,0.2927,4587.7,4587.6,2.28858899]
[1756291403568,0.7572,4587.7,4587.6,0.1088]
[1756291403727,0.7564,4587.7,4587.6,0.1088]
[1756291403928,0.7564,4587.7,4587.6,2.28858899]
[1756291404160,0.7564,4587.7,4587.6,0.1088]
[1756291404332,0.7564,4587.7,4587.6,0.1098]
[1756291404530,0.002,4587.9,4587.6,0.3425]
[1756291404769,0.002,4587.9,4587.7,2.17974148]
[1756291404945,0.002,4587.9,4587.7,2.43196563]
[1756291405142,0.002,4587.9,4587.8,0.2327]
[1756291405751,0.002,4587.9,4587.8,2.41239397]
[1756291405947,0.002,4587.9,4587.8,5.52119397]
[1756291407182,0.002,4587.9,4587.8,6.18119397]
[1756291407356,0.002,4587.9,4587.8,7.18800993]
[1756291408168,0.002,4587.9,4587.8,13.43456966]
[1756291408873,1e-08,4588.0,4587.9,5.83964646]
[1756291409184,1e-08,4588.0,4587.9,6.21774646]
[1756291409346,1e-08,4588.0,4587.9,7.80449049]
[1756291411861,1e-08,4588.0,4587.9,7.65909049]
[1756291412470,1e-08,4588.0,4587.9,6.99909049]
[1756291412852,0.29270001,4588.0,4587.9,3.76639049]
[1756291413051,0.75720001,4588.0,4587.9,2.17964646]
[1756291413282,0.75720001,4588.0,4587.8,0.1088]
[1756291413779,0.75720001,4588.0,4587.8,3.1088]
[1756291413986,0.4645,4587.9,4587.8,0.1088]
[1756291414478,0.7572,4587.9,4587.8,0.1088]
[1756291415283,0.7572,4587.9,4587.8,2.28849397]
[1756291415470,1e-08,4588.0,4587.9,2.17964646]
[1756291415671,1e-08,4588.0,4587.8,2.73541443]
[1756291415983,0.7572,4587.9,4587.8,2.28849397]
[1756291417081,1e-08,4588.0,4587.9,2.17964646]
[1756291417385,0.46450001,4588.0,4587.9,2.17964646]
[1756291417555,0.75720001,4588.0,4587.9,2.17964646]
[1756291417957,0.75720001,4588.0,4587.8,0.1088]
[1756291418183,0.4645,4587.9,4587.8,2.28849397]
[1756291418385,0.7572,4587.9,4587.8,2.28849397]
[1756291419194,1e-08,4588.0,4587.9,2.17964646]
[1756291419685,0.75720001,4588.0,4587.9,2.17964646]
[1756291419880,0.75720001,4588.0,4587.8,2.73541625]
[1756291420085,0.75720001,4588.0,4587.9,2.17964646]
[1756291420285,0.29270001,4588.0,4587.9,2.17964646]
[1756291420796,0.75720001,4588.0,4587.9,2.17964646]
[1756291422299,0.75720001,4588.0,4587.8,0.1088]
[1756291423392,0.4645,4587.9,4587.8,0.1088]
[1756291423794,0.7572,4587.9,4587.8,0.1088]
[1756291423996,0.7572,4587.9,4587.8,0.1098]
[1756291425869,0.2927,4587.9,4587.8,0.1098]
[1756291426077,0.7572,4587.9,4587.8,0.1098]
[1756291428006,0.2927,4587.9,4587.8,2.28949397]
[1756291428305,0.7564,4587.9,4587.8,2.28949397]
[1756291428481,0.7564,4587.9,4587.8,0.1098]
[1756291430194,1e-08,4588.0,4587.8,0.1098]
[1756291430580,1e-08,4588.0,4587.9,2.17964646]
[1756291430778,0.47030001,4588.0,4587.9,2.17964646]
[1756291431096,0.78520001,4588.0,4587.8,2.28948755]
[1756291431879,1e-08,4588.0,4587.8,0.1098]
[1756291432083,1e-08,4588.0,4587.9,2.17964646]
[1756291432397,1e-08,4588.0,4587.9,0.55581814]
[1756291432601,0.31490001,4588.0,4587.9,2.7354646]
[1756291432796,0.78520001,4588.0,4587.9,2.28844646]
[1756291435613,1e-08,4588.0,4587.9,2.28844646]
[1756291435824,0.31490001,4588.0,4587.9,2.73546403]
[1756291436605,1e-08,4588.0,4587.9,2.96936403]
[1756291438727,1e-08,4588.0,4587.9,6.65116049]
[1756291438927,1e-08,4588.0,4587.9,6.77556403]
[1756291439117,1e-08,4588.0,4587.9,6.52056403]
[1756291439315,1e-08,4588.0,4587.9,6.62936403]
[1756291440528,1e-08,4588.0,4587.9,6.77556403]
[1756291440905,1e-08,4588.0,4587.9,6.62936403]
[1756291441107,1e-08,4588.0,4587.9,12.8748136]
[1756291441708,1e-08,4588.0,4587.9,13.0210136]
[1756291444195,1e-08,4588.4,4588.3,2.83945644]
[1756291444428,1e-08,4588.4,4588.3,13.27460136]
[1756291444632,1e-08,4588.4,4588.3,13.4867068]
[1756291444799,1e-08,4588.4,4588.3,7.24125723]
[1756291445229,1e-08,4588.4,4588.3,7.35005723]
[1756291445427,1e-08,4588.4,4588.3,7.43740323]
[1756291446736,0.78520001,4588.4,4588.3,7.11615723]
[1756291447028,0.78520001,4588.4,4588.3,6.45615723]
[1756291447211,0.78520001,4588.4,4588.3,5.28825644]
[1756291447928,0.78520001,4588.4,4588.3,5.94825644]
[1756291448130,0.78520001,4588.4,4588.3,5.28825644]
[1756291450927,0.31490001,4588.4,4588.3,5.28825644]
[1756291451239,0.78520001,4588.4,4588.3,5.28825644]
[1756291452050,1e-08,4588.4,4588.3,5.28825644]
[1756291452557,1e-08,4588.4,4588.3,6.92893723]
[1756291452723,0.00120001,4588.5,4588.4,5.83940894]
[1756291453130,0.31610001,4588.5,4588.4,5.83940894]
[1756291453352,0.78640001,4588.5,4588.4,2.17940894]
[1756291454425,0.00120001,4588.5,4588.4,2.62617548]
[1756291454743,0.00120001,4588.5,4588.4,2.96887548]
[1756291457237,0.78640001,4588.5,4588.4,2.73497548]
[1756291458039,0.47150001,4588.5,4588.4,2.73497548]
[1756291459058,0.78640001,4588.5,4588.4,2.28820894]
[1756291459642,0.78640001,4588.5,4588.4,5.28820894]
[1756291462960,0.78640001,4588.5,4588.4,0.1088]
[1756291463363,0.78640001,4588.5,4588.4,2.28820894]
[1756291463563,0.78640001,4588.5,4588.4,0.1088]
[1756291464066,0.78640001,4588.5,4588.4,2.28820894]
[1756291465166,0.78640001,4588.5,4588.4,0.1088]
[1756291465364,0.78640001,4588.5,4588.4,2.28820894]
[1756291467565,0.75130001,4588.5,4588.4,2.28820894]
[1756291469361,0.00120001,4588.5,4588.4,2.52210894]
[1756291469556,0.00120001,4588.5,4588.4,3.01406376]
[1756291469765,0.00120001,4588.5,4588.4,2.78016376]
[1756291470338,0.00120001,4588.5,4588.4,3.01406376]
[1756291471750,0.00120001,4588.5,4588.4,2.78016376]
[1756291472270,0.00120001,4588.5,4588.4,2.99226968]
[1756291472667,0.00120001,4588.5,4588.4,5.99226968]
[1756291473079,0.00120001,4588.5,4588.4,6.65226968]
[1756291475277,0.00120001,4588.5,4588.4,6.41836968]
[1756291475567,0.00120001,4588.5,4588.4,6.65226968]
[1756291476150,0.00120001,4588.5,4588.4,6.41836968]
[1756291476671,0.00120001,4588.5,4588.4,6.65226968]
[1756291477174,0.00040001,4588.5,4588.4,6.65226968]
[1756291484846,0.29930001,4588.5,4588.3,0.001]
[1756291485052,5.22919728,4588.4,4587.8,0.001]
[1756291485274,6.24544957,4587.9,4585.8,0.02]
[1756291485478,8.72418608,4587.5,4586.4,2.18034125]
[1756291485672,8.72418608,4587.5,4586.2,2.1804085]
[1756291485886,9.25818408,4587.5,4586.0,2.18053833]
[1756291486093,9.25818408,4587.5,4586.2,2.18044988]
[1756291486293,9.6386104,4587.5,4585.8,0.02]
[1756291486495,10.13329533,4587.5,4585.8,0.02]
[1756291486701,12.93026255,4587.5,4585.8,0.02]
[1756291487002,13.13306623,4587.5,4585.8,0.02]
[1756291487379,12.93026255,4587.5,4585.8,0.02]
[1756291487975,12.93026255,4587.5,4585.9,2.18058514]
[1756291488492,12.93026255,4587.5,4586.0,2.18054864]
[1756291488811,12.93026255,4587.5,4586.1,2.18049604]
[1756291488979,12.54983623,4587.5,4586.1,2.18049604]
[1756291489493,12.54983623,4587.5,4585.8,0.02]
[1756291489694,9.25818408,4587.5,4586.0,2.61560733]
[1756291490686,9.25818408,4587.5,4586.2,2.18041528]
[1756291490887,9.25818408,4587.5,4586.3,2.18039749]
[1756291491195,9.25818408,4587.5,4586.3,2.64459749]
[1756291492020,9.25818408,4587.5,4586.3,0.4642]
[1756291493075,9.25818408,4587.5,4585.8,0.4842]
[1756291493604,9.25818408,4587.5,4585.8,2.66483016]
[1756291493802,9.25818408,4587.5,4586.2,2.18043927]
[1756291494678,0.386298,4587.5,4586.3,0.02180406]
[1756291494900,2.56613451,4587.5,4586.7,2.64440668]
[1756291495105,2.56613451,4587.5,4587.1,0.1088]
[1756291495780,0.386298,4587.5,4587.1,0.1088]
[1756291496683,2.56613451,4587.5,4587.1,0.1088]
[1756291500113,9.56424451,4587.5,4587.1,0.1088]
[1756291500519,7.384408,4587.5,4587.1,0.1088]
[1756291501087,9.56424451,4587.5,4587.1,0.1088]
[1756291501610,9.56344451,4587.5,4587.1,0.1088]
[1756291502618,7.383608,4587.5,4587.1,0.1088]
[1756291503191,7.084708,4587.5,4587.1,0.1088]
[1756291503388,7.084708,4587.5,4587.4,0.7813]
[1756291503726,6.99811,4587.5,4587.4,3.06998403]
[1756291504042,6.99811,4587.5,4587.4,3.59507766]
[1756291504987,6.99811,4587.5,4587.4,0.8901]
[1756291505231,6.99811,4587.5,4587.4,3.06998403]
[1756291506437,6.99811,4587.5,4587.4,6.06998403]
[1756291509414,0.00040001,4588.5,4588.4,2.17940894]
[1756291509634,0.00040001,4588.5,4588.4,2.28820894]
[1756291509830,0.00040001,4588.5,4588.4,3.06850894]
[1756291511360,0.00040001,4588.5,4588.4,0.4249]
[1756291511527,0.00040001,4588.5,4588.4,0.1088]
[1756291511726,0.00040001,4588.5,4588.4,2.60430894]
[1756291513055,0.00040001,4588.5,4588.4,0.4249]
[1756291513264,0.00040001,4588.5,4588.4,2.60430894]
[1756291514571,0.00040001,4588.5,4588.4,3.06850894]
[1756291515057,6.99124958,4588.5,4587.8,0.02]
[1756291515257,6.24544957,4587.9,4587.8,0.1288]
[1756291515760,0.2799,4587.9,4587.8,0.1288]
[1756291516659,2.92504646,4587.9,4587.8,0.1288]
[1756291516858,2.92504646,4587.9,4587.8,0.02]
[1756291517071,3.68930146,4587.9,4587.8,0.02]
[1756291517567,1.509655,4587.9,4587.8,0.02]
[1756291518142,1.044155,4587.9,4587.8,0.02]
[1756291518339,0.764255,4587.9,4587.8,0.02]
[1756291518551,0.655455,4587.9,4587.8,0.02]
[1756291518742,0.933455,4587.9,4587.8,0.1288]
[1756291518942,0.278,4587.9,4587.8,0.1288]
[1756291519351,6.52344957,4587.9,4587.8,0.1088]
[1756291519743,6.99084957,4587.9,4587.8,0.1088]
[1756291520374,9.17049603,4587.9,4587.8,0.1088]
[1756291520671,9.17049603,4587.9,4587.4,0.001]
[1756291520672,2.17969767,4587.8,4587.4,0.001]
[1756291520860,6.24544957,4587.5,4587.4,0.001]
[1756291521067,6.55344957,4587.5,4587.4,0.001]
[1756291521439,8.73328608,4587.5,4587.4,0.001]
[1756291521644,9.17098608,4587.5,4587.4,0.001]
[1756291523166,6.99114957,4587.5,4587.4,0.001]
[1756291523477,0.1088,4587.6,4587.4,0.001]
[1756291524278,0.2742,4587.5,4587.4,0.001]
[1756291525343,2.45403651,4587.5,4587.4,0.001]
[1756291525600,2.92513651,4587.5,4587.4,0.001]
[1756291525823,0.2742,4587.5,4587.4,0.001]
[1756291526304,0.2734,4587.5,4587.4,0.001]
[1756291526675,0.1088,4587.8,4587.4,0.2927]
[1756291526924,7.10731001,4588.5,4587.5,0.4441]
[1756291527080,7.10731001,4588.5,4587.9,0.1088]
[1756291527822,0.2726,4588.0,4587.9,0.1088]
[1756291528114,7.10731001,4588.5,4587.9,2.28844646]
[1756291528274,7.10731001,4588.5,4587.9,2.58014646]
[1756291529108,7.10731001,4588.5,4588.0,2.17959822]
[1756291529482,7.10731001,4588.5,4588.1,2.1795507]
[1756291529685,7.10731001,4588.5,4588.1,2.6236507]
[1756291530010,6.99851001,4588.5,4588.4,0.2917]
[1756291530908,7.27111001,4588.5,4588.2,0.1088]
[1756291531611,7.27111001,4588.5,4588.2,2.2882906]
[1756291532307,7.27111001,4588.5,4588.3,2.17944743]
[1756291532487,6.99851001,4588.5,4588.3,2.17944743]
[1756291533000,6.99851001,4588.5,4588.4,2.47110894]
[1756291533200,6.99851001,4588.5,4588.4,2.91520894]
[1756291533808,6.99851001,4588.5,4588.3,2.17944829]
[1756291534002,0.308,4588.4,4588.2,0.1088]
[1756291536292,9.17756644,4588.3,4588.2,0.1088]
[1756291536627,9.92166644,4588.3,4588.2,0.1088]
[1756291536808,10.1251229,4588.3,4588.2,0.1088]
[1756291537009,2.17979789,4587.6,4587.3,0.001]
[1756291537327,2.28860051,4587.6,4587.3,0.001]
[1756291537526,0.308,4587.5,4587.3,0.001]
[1756291537698,2.48783651,4587.5,4587.3,0.001]
[1756291538094,0.308,4587.5,4587.3,0.001]
[1756291541810,0.7441,4587.5,4587.3,0.001]
[1756291542009,9.92204651,4587.5,4587.3,0.001]
[1756291542396,9.48594651,4587.5,4587.3,0.001]
[1756291542831,6.99811,4587.5,4587.4,0.2927]
[1756291543328,6.99811,4587.5,4587.4,0.001]
[1756291543738,7.30611,4587.5,4587.4,0.001]
[1756291544528,7.10691,4587.5,4587.4,0.001]
[1756291544720,6.99811,4587.5,4587.4,0.2927]
[1756291544900,6.99811,4587.5,4587.4,0.7368]
[1756291545308,6.99811,4588.7,4587.7,2.17971675]
[1756291545510,0.1088,4588.6,4588.0,0.1088]
[1756291545716,0.1088,4588.6,4588.0,2.28838831]
[1756291545897,0.1088,4588.6,4588.0,2.73248831]
[1756291546093,0.1088,4588.6,4588.0,0.1088]
[1756291546094,2.28812516,4588.6,4588.0,0.1088]
[1756291546298,6.52206697,4588.1,4587.4,0.001]
[1756291546498,6.24946697,4587.6,4587.5,0.1088]
[1756291546939,6.24946697,4588.2,4587.7,2.17974122]
[1756291547228,6.24946697,4588.2,4587.8,0.4441]
[1756291547428,6.24799455,4588.2,4587.9,0.1088]
[1756291547799,2.28857135,4588.5,4587.9,0.1088]
[1756291548031,0.10920001,4588.5,4588.4,0.2917]
[1756291548810,0.38180001,4588.5,4587.9,0.1088]
[1756291549206,2.56116151,4588.5,4587.9,0.1088]
[1756291549407,6.99811,4588.4,4587.9,0.1088]
[1756291550046,6.99811,4588.4,4587.9,0.5817]
[1756291550208,6.99811,4588.4,4587.9,0.1088]
[1756291550710,6.99731,4588.4,4587.9,0.1088]
[1756291550904,6.99731,4588.4,4588.0,2.17958974]
[1756291551111,6.99731,4588.4,4588.0,2.65248974]
[1756291551611,6.99731,4588.4,4588.0,0.4729]
[1756291552165,6.99731,4588.4,4587.9,0.1088]
[1756291552842,6.99731,4588.4,4587.9,2.76133349]
[1756291553140,6.99731,4588.4,4588.0,2.17958217]
[1756291553446,6.99731,4588.4,4588.3,0.297]
[1756291553653,6.99731,4588.4,4588.3,0.7699]
[1756291555825,6.99731,4588.4,4588.3,2.94935644]
[1756291557061,6.99731,4588.4,4588.3,0.7699]
[1756291557570,6.99731,4588.4,4588.3,2.94935644]
[1756291557760,6.99731,4588.4,4588.3,1.29366869]
[1756291557956,6.99731,4588.4,4588.3,3.47312513]
[1756291558336,6.99731,4588.4,4588.3,0.7699]
[1756291558661,6.99731,4588.4,4588.3,0.297]
[1756291559350,6.99731,4588.4,4588.3,2.47645644]
[1756291559546,6.99731,4588.4,4588.3,2.94935644]
[1756291560260,0.00040001,4588.5,4588.4,2.17940894]
[1756291560464,0.00040001,4588.5,4588.4,3.55056548]
[1756291560660,0.00040001,4588.5,4588.4,3.84756548]
[1756291561429,0.00040001,4588.5,4588.4,6.84756548]
[1756291561834,0.00040001,4588.5,4588.4,11.25156548]
[1756291562771,0.00040001,4588.5,4588.4,7.50756548]
[1756291562931,0.00040001,4588.5,4588.4,11.25156548]
[1756291563337,0.00040001,4588.5,4588.4,7.50756548]
[1756291563561,0.00040001,4588.5,4588.4,11.25156548]
[1756291567369,0.00040001,4588.5,4588.4,11.25056548]
[1756291571177,1e-08,4589.0,4588.9,5.83917147]
[1756291571469,1e-08,4589.0,4588.9,12.23381526]
[1756291571668,1e-08,4589.0,4588.9,13.00371526]
[1756291572272,1e-08,4589.0,4588.9,8.78881526]
[1756291572473,0.74380001,4589.0,4588.9,7.59617147]
[1756291572675,0.27510001,4589.0,4588.9,7.59617147]
[1756291575184,0.27430001,4589.0,4588.9,7.59617147]
[1756291576181,0.74300001,4589.0,4588.9,7.59617147]
[1756291576686,0.27430001,4589.0,4588.9,7.59617147]
[1756291577243,0.27430001,4589.0,4588.9,3.85517147]
[1756291577445,0.74300001,4589.0,4588.9,7.59617147]
[1756291578451,0.74300001,4589.0,4588.9,7.59517147]
[1756291579146,0.27630001,4589.0,4588.9,1.676]
[1756291579347,6.98639353,4589.0,4588.9,3.74]
[1756291580395,6.98639353,4589.0,4588.8,0.02]
[1756291580396,2.17917147,4588.9,4588.8,0.02]
[1756291580547,9.16552529,4589.0,4588.8,3.76]
[1756291580752,0.7285,4588.9,4588.8,3.76]
[1756291582555,0.7285,4588.9,4588.6,0.1088]
[1756291582755,2.90767147,4588.9,4588.8,3.74]
[1756291583010,0.7285,4588.9,4588.8,3.74]
[1756291583567,0.2755,4588.9,4588.8,3.74]
[1756291583765,0.2755,4588.9,4588.8,0.1088]
[1756291583965,0.7285,4588.9,4588.8,3.8478]
[1756291584794,0.7285,4588.9,4588.8,3.8488]
[1756291584998,7.72581,4588.9,4588.3,0.001]
[1756291585175,6.24139352,4588.4,4588.3,0.001]
[1756291585373,13.23870352,4588.4,4588.3,0.001]
[1756291585572,16.15691246,4588.4,4588.3,0.001]
[1756291585772,14.63285752,4588.4,4588.3,0.001]
[1756291586199,7.938464,4588.4,4588.3,3.74]
[1756291586483,6.99731,4588.4,4588.3,4.1363]
[1756291587297,6.99731,4588.4,4588.3,3.8488]
[1756291587710,7.28311,4588.4,4588.3,3.8488]
[1756291588220,6.99731,4588.4,4588.3,3.8488]
[1756291588423,7.28311,4588.4,4588.3,3.8488]
[1756291589720,7.73611,4588.4,4588.3,3.8488]
[1756291591426,7.73611,4588.4,4588.3,0.1098]
[1756291591592,7.28311,4588.4,4588.3,3.8488]
[1756291592221,7.73611,4588.4,4588.3,3.8488]
[1756291592417,7.73611,4588.4,4588.3,0.1098]
[1756291592734,7.73611,4588.4,4588.3,3.8488]
[1756291593803,7.73611,4588.4,4588.3,0.1098]
[1756291594007,7.73611,4588.4,4588.3,0.001]
[1756291594008,9.91551894,4588.4,4588.3,0.001]
[1756291594232,10.57088994,4588.4,4588.3,0.001]
[1756291595750,10.11788994,4588.4,4588.3,0.001]
[1756291596498,10.57088994,4588.4,4588.3,0.001]
[1756291599606,10.57008994,4588.4,4588.3,0.001]
[1756291601630,13.57008994,4588.4,4588.3,0.001]
[1756291605825,2.17964132,4588.0,4587.8,0.001]
[1756291606013,6.99551,4587.9,4587.8,0.001]
[1756291606212,6.99551,4587.9,4587.8,2.40965012]
[1756291606414,6.99551,4587.9,4587.8,2.80595012]
[1756291606654,6.99551,4587.9,4587.8,3.27235012]
[1756291606953,6.99551,4587.9,4587.8,7.00935012]
[1756291607315,6.99551,4588.9,4588.6,2.17929525]
[1756291607627,6.99551,4588.9,4588.8,0.2875]
[1756291607809,6.99551,4588.9,4588.8,0.7539]
[1756291610994,7.50836131,4588.9,4588.7,0.1088]
[1756291611199,6.35019352,4588.8,4588.4,1.676]
[1756291611500,2.17945644,4588.3,4588.2,0.1088]
[1756291611662,8.71134996,4588.3,4587.9,3.8448]
[1756291612067,0.655356,4588.2,4587.9,3.8448]
[1756291612310,0.655356,4588.2,4588.1,0.3078]
[1756291612456,6.24139352,4588.3,4588.1,0.3078]
[1756291612658,6.89674952,4588.3,4588.1,0.7527]
[1756291612894,6.89674952,4588.3,4587.9,3.8448]
[1756291613102,9.46211394,4588.2,4588.0,3.736]
[1756291613504,9.46211394,4588.2,4587.8,0.001]
[1756291613705,6.24139352,4587.9,4587.8,3.737]
[1756291613887,6.53009352,4587.9,4587.8,0.001]
[1756291615502,6.24139352,4587.9,4587.8,0.3088]
[1756291615902,6.99551,4588.2,4587.8,0.7537]
[1756291616317,6.99551,4588.2,4587.9,0.4449]
[1756291616515,6.99551,4588.2,4588.1,0.3078]
[1756291616724,7.650882,4588.2,4588.1,0.3078]
[1756291617319,6.99551,4588.2,4588.1,2.93225144]
[1756291617473,6.99551,4588.2,4588.1,3.04105144]
[1756291618510,6.99551,4588.2,4588.1,0.8615]
[1756291619705,6.99551,4588.2,4588.1,4.5965]
[1756291619914,6.99551,4588.2,4588.1,6.77605144]
[1756291620287,6.99551,4588.2,4588.1,3.8438]
[1756291620993,7.28261,4588.2,4588.1,3.8438]
[1756291621425,7.28261,4588.2,4588.1,3.735]
[1756291621789,6.99551,4588.2,4588.1,4.0428]
[1756291621989,6.99551,4588.2,4588.1,6.66725144]
[1756291622438,6.99551,4588.2,4588.1,4.4877]
[1756291622913,6.99551,4588.2,4588.1,4.0428]
[1756291623111,6.99551,4588.2,4588.0,0.1088]
[1756291623112,7.28261,4588.2,4588.0,0.1088]
[1756291623304,7.28261,4588.2,4587.8,0.001]
[1756291623305,13.52400352,4588.2,4587.8,0.001]
[1756291623515,13.52400352,4588.2,4588.0,3.734]
[1756291624000,7.28181,4588.2,4588.0,3.734]
[1756291624417,7.28181,4588.2,4587.8,0.1098]
[1756291624595,9.46131977,4588.2,4587.8,0.1098]
[1756291624798,9.46131977,4588.2,4587.9,3.734]
[1756291625302,7.28181,4588.2,4587.9,3.734]
[1756291625497,8.42099191,4588.1,4587.9,3.734]
[1756291625902,0.2887,4588.0,4587.9,3.734]
[1756291626813,6.99471,4588.2,4587.9,4.0418]
[1756291627115,6.99471,4588.2,4587.9,4.4867]
[1756291627525,6.99471,4588.2,4587.9,4.0418]
[1756291628431,6.99471,4588.2,4587.9,0.3078]
[1756291628609,9.17421438,4588.2,4587.8,0.021]
[1756291628809,6.52849352,4588.0,4587.8,3.754]
[1756291629221,6.99471,4587.9,4587.8,3.754]
[1756291629705,7.28181,4587.9,4587.8,3.754]
[1756291629907,6.99471,4587.9,4587.8,3.754]
[1756291630102,6.99471,4587.9,4587.8,4.0618]
[1756291630303,7.28341,4587.9,4587.8,3.754]
[1756291630704,6.99471,4587.9,4587.8,4.0618]
[1756291630899,6.99471,4587.9,4587.8,0.3288]
[1756291631146,6.99471,4587.9,4587.8,4.0618]
[1756291631922,6.99471,4587.9,4587.8,0.3288]
[1756291632125,7.28181,4587.9,4587.8,0.021]
[1756291632325,7.28181,4587.9,4587.8,3.754]
[1756291632646,0.655413,4588.2,4587.8,3.754]
[1756291632647,0.655413,4588.2,4587.9,2.17964646]
[1756291632827,0.002,4588.4,4588.2,2.17945774]
[1756291633025,0.002,4588.4,4588.3,6.22025644]
[1756291633224,0.002,4588.4,4588.3,6.66515644]
[1756291635657,0.002,4588.4,4588.3,6.66415644]
[1756291635829,0.002,4588.4,4588.3,7.55940721]
[1756291640656,0.002,4588.4,4588.3,4.62625077]
[1756291640866,0.002,4588.4,4588.2,0.1088]
[1756291640867,0.2993,4588.4,4588.2,0.1088]
[1756291641066,2.17954275,4588.2,4587.9,2.86]
[1756291641258,0.2988,4588.0,4587.9,2.86]
[1756291641786,2.47839895,4588.0,4587.9,2.86]
[1756291642097,0.7425,4588.0,4587.8,0.021]
[1756291642420,2.92210162,4588.0,4587.8,0.021]
[1756291643147,0.7425,4588.0,4587.8,0.021]
[1756291643363,0.1088,4588.3,4587.8,0.021]
[1756291643364,0.1088,4588.3,4587.9,3.731]
[1756291643786,0.3158,4588.0,4587.9,3.731]
[1756291644172,7.31051,4588.0,4587.9,3.731]
[1756291645698,7.29201,4588.0,4587.9,3.731]
[1756291646113,7.29201,4588.0,4587.9,3.73]
[1756291648619,7.29121,4588.0,4587.9,3.73]
[1756291649117,6.99391,4588.0,4587.9,3.73]
[1756291649823,7.29271,4588.0,4587.9,3.73]
[1756291650183,9.47231455,4588.0,4587.8,0.021]
[1756291650386,2.62334646,4587.9,4587.8,0.021]
[1756291650593,2.73214646,4587.9,4587.8,0.021]
[1756291650925,3.03234646,4587.9,4587.8,0.021]
[1756291651126,3.03084646,4587.9,4587.8,0.021]
[1756291652917,13.75375646,4587.9,4587.8,0.021]
[1756291653216,14.40931146,4587.9,4587.8,0.021]
[1756291653423,14.61227371,4587.9,4587.8,0.021]
[1756291656605,14.40931146,4587.9,4587.8,0.021]
[1756291659497,17.40931146,4587.9,4587.8,0.021]
[1756291662920,16.96711146,4587.9,4587.8,0.021]
[1756291663115,17.40931146,4587.9,4587.8,0.021]
[1756291663830,17.6117835,4587.9,4587.8,0.021]
[1756291665054,2.17974148,4587.7,4587.6,0.001]
[1756291665358,15.35160704,4587.7,4587.6,0.001]
[1756291665517,16.09400704,4587.7,4587.6,0.001]
[1756291665720,16.18142204,4587.7,4587.6,0.001]
[1756291668428,16.84142204,4587.7,4587.6,0.001]
[1756291669749,16.84131915,4587.7,4587.6,0.001]
[1756291670055,2.17988403,4587.4,4587.1,0.001]
[1756291670352,8.42137259,4587.2,4587.1,0.001]
[1756291670548,15.89325174,4587.2,4587.1,0.001]
[1756291670756,16.44005174,4587.2,4587.1,0.001]
[1756291671145,16.52747374,4587.2,4587.1,0.001]
[1756291672958,16.52667374,4587.2,4587.1,0.001]
[1756291674127,16.08867374,4587.2,4587.1,0.001]
[1756291674329,16.52661309,4587.2,4587.1,0.001]
[1756291675426,16.08861309,4587.2,4587.1,0.001]
[1756291675723,7.08171,4587.2,4587.1,0.7453]
[1756291676936,7.08171,4587.2,4587.1,2.92532659]
[1756291677139,7.08171,4587.2,4587.1,3.22005925]
[1756291677559,6.97291,4587.2,4587.1,3.22005925]
[1756291679757,0.002,4588.0,4587.1,3.22005925]
[1756291679758,2.29042424,4588.0,4587.1,1.14883266]
[1756291680029,2.17965402,4587.9,4587.2,0.4575]
[1756291680328,8.53179966,4588.0,4587.9,0.2868]
[1756291680528,8.53179966,4588.0,4587.9,0.7443]
[1756291680751,8.50132035,4588.0,4587.9,0.7443]
[1756291681299,6.32171421,4588.0,4587.9,0.7443]
[1756291681503,0.08032069,4588.0,4587.9,0.7443]